fUST/lending_fUST_20250417
["ID","MTS","AMOUNT","RATE_DAILY","PERIOD"]
[358260297,1744877444786,-500.0,0.00021917,2]
[358260299,1744877444796,-734.86,0.00021917,2]
[358260301,1744877444805,-500.0,0.00021917,2]
[358260303,1744877444816,-500.0,0.00021917,2]
[358260305,1744877444826,-500.0,0.00021917,2]
[358260307,1744877444836,-518.76224156,0.00021917,2]
[358260309,1744877444846,-505.75647278,0.00021917,2]
[358260311,1744877444855,-500.0,0.00021917,2]
[358260313,1744877444865,-894.17,0.00021917,2]
[358260315,1744877444874,-810.85,0.00021917,2]
[358260317,1744877444884,-500.0,0.00021917,2]
[358260319,1744877444894,-500.0,0.00021917,2]
[358260321,1744877444904,-500.0,0.00021917,2]
[358260323,1744877444913,-1106.43,0.00021917,2]
[358260325,1744877444923,-500.0,0.00021917,2]
[358260327,1744877444933,-790.49,0.00021917,2]
[358260329,1744877444943,-500.0,0.00021917,2]
[358260331,1744877444953,-790.49,0.00021917,2]
[358260333,1744877444963,-500.0,0.00021917,2]
[358260335,1744877444972,-790.49,0.00021917,2]
[358260337,1744877444982,-790.49,0.00021917,2]
[358260339,1744877444992,-790.49,0.00021917,2]
[358260341,1744877445002,-790.49,0.00021917,2]
[358260343,1744877445012,-790.49,0.00021917,2]
[358260345,1744877445022,-790.49,0.00021917,2]
[358260347,1744877445031,-790.49,0.00021917,2]
[358260349,1744877445041,-790.49,0.00021917,2]
[358260351,1744877445051,-790.49,0.00021917,2]
[358260353,1744877445060,-790.49,0.00021917,2]
[358260355,1744877445070,-790.49,0.00021917,2]
[358260357,1744877445079,-790.49,0.00021917,2]
[358260359,1744877445089,-500.0,0.00021917,2]
[358260361,1744877445098,-500.0,0.00021917,2]
[358260363,1744877445108,-790.49,0.00021917,2]
[358260365,1744877445117,-790.49,0.00021917,2]
[358260367,1744877445127,-500.0,0.00021917,2]
[358260369,1744877445138,-790.49,0.00021917,2]
[358260371,1744877445148,-790.49,0.00021917,2]
[358260373,1744877445158,-790.49,0.00021917,2]
[358260375,1744877445167,-790.49,0.00021917,2]
[358260377,1744877445177,-790.49,0.00021917,2]
[358260379,1744877445187,-790.49,0.00021917,2]
[358260381,1744877445197,-790.49,0.00021917,2]
[358260383,1744877445207,-500.0,0.00021917,2]
[358260384,1744877445217,-790.68971987,0.00021917,2]
[358260385,1744877445227,-500.0,0.00021917,2]
[358260386,1744877445238,-500.0,0.00021917,2]
[358260387,1744877445248,-500.0,0.00021917,2]
[358260388,1744877445257,-500.0,0.00021917,2]
[358260390,1744877445267,-500.0,0.00021917,2]
[358260392,1744877445277,-500.0,0.00021917,2]
[358260393,1744877445286,-2033.92,0.00021917,2]
[358260395,1744877445296,-1089.49,0.00021917,2]
[358260397,1744877445305,-500.0,0.00021917,2]
[358260399,1744877445315,-1094.98,0.00021917,2]
[358260400,1744877445325,-452.09513222,0.00021917,2]
[358260401,1744877445335,-500.0,0.00021917,2]
[358260402,1744877445344,-500.0,0.00021917,2]
[358260403,1744877445354,-338.31619733,0.00021917,2]
[358260404,1744877445364,-1279.18,0.00021917,2]
[358260405,1744877445373,-500.0,0.00021917,2]
[358260406,1744877445383,-886.28,0.00021917,2]
[358260407,1744877445392,-500.0,0.00021917,2]
[358260408,1744877445408,-500.0,0.00021917,2]
[358260410,1744877445430,-1367.99,0.00021917,2]
[358260412,1744877445453,-500.0,0.00021917,2]
[358260414,1744877445476,-2070.9,0.00021917,2]
[358260415,1744877445501,-500.0,0.00021917,2]
[358260417,1744877445523,-500.0,0.00021917,2]
[358260419,1744877445543,-500.0,0.00021917,2]
[358260421,1744877445565,-500.0,0.00021917,2]
[358260423,1744877445587,-1118.86,0.00021917,2]
[358260425,1744877445608,-2169.54,0.00021917,2]
[358260427,1744877445619,-194.24288807,0.00021917,2]
[358260429,1744877445628,-618.22,0.00021917,2]
[358260430,1744877445639,-500.0,0.00021917,2]
[358260432,1744877445649,-500.0,0.00021917,2]
[358260434,1744877445658,-500.0,0.00021917,2]
[358260436,1744877445668,-500.0,0.00021917,2]
[358260438,1744877445678,-500.0,0.00021917,2]
[358260439,1744877445688,-503.69950416,0.00021917,2]
[358260441,1744877445698,-648.82384929,0.00021917,2]
[358260442,1744877445707,-500.0,0.00021917,2]
[358260444,1744877445717,-559.29,0.00021917,2]
[358260445,1744877445726,-740.53,0.00021917,2]
[358260446,1744877445736,-516.44899162,0.00021917,2]
[358260447,1744877445746,-1015.95,0.00021917,2]
[358260448,1744877445755,-500.0,0.00021917,2]
[358260449,1744877445764,-653.39,0.00021917,2]
[358260450,1744877445774,-1178.96,0.00021917,2]
[358260451,1744877445783,-500.0,0.00021917,2]
[358260452,1744877445792,-500.0,0.00021917,2]
[358260453,1744877445801,-500.04,0.00021917,2]
[358260454,1744877445810,-500.0,0.00021917,2]
[358260455,1744877445819,-500.0,0.00021917,2]
[358260456,1744877445828,-500.0,0.00021917,2]
[358260457,1744877445838,-269.70726464,0.00021917,2]
[358260458,1744877445847,-553.0,0.00021917,2]
[358260459,1744877445857,-500.0,0.00021917,2]
[358260460,1744877445867,-554.52,0.00021917,2]
[358260461,1744877445877,-500.0,0.00021917,2]
[358260462,1744877445887,-500.0,0.00021917,2]
[358260463,1744877445896,-500.0,0.00021917,2]
[358260464,1744877445906,-500.0,0.00021917,2]
[358260465,1744877445916,-500.0,0.00021917,2]
[358260466,1744877445925,-500.0,0.00021917,2]
[358260467,1744877445935,-500.0,0.00021917,2]
[358260468,1744877445945,-739.82,0.00021917,2]
[358260469,1744877445953,-500.0,0.00021917,2]
[358260470,1744877445961,-523.17867876,0.00021917,2]
[358260471,1744877445969,-500.0,0.00021917,2]
[358260472,1744877445977,-500.0,0.00021917,2]
[358260473,1744877445986,-1824.78,0.00021917,2]
[358260474,1744877445994,-641.2,0.00021917,2]
[358260475,1744877446002,-500.0,0.00021917,2]
[358260476,1744877446010,-500.0,0.00021917,2]
[358260477,1744877446019,-890.96,0.00021917,2]
[358260478,1744877446029,-500.0,0.00021917,2]
[358260479,1744877446037,-1025.30230021,0.00021917,2]
[358260480,1744877446046,-503.56796388,0.00021917,2]
[358260481,1744877446055,-501.04497863,0.00021917,2]
[358260482,1744877446064,-500.0,0.00021917,2]
[358260483,1744877446072,-502.45,0.00021917,2]
[358260484,1744877446079,-500.0,0.00021917,2]
[358260485,1744877446087,-500.0,0.00021917,2]
[358260486,1744877446095,-1715.18,0.00021917,2]
[358260487,1744877446103,-501.1739163,0.00021917,2]
[358260488,1744877446112,-500.0,0.00021917,2]
[358260489,1744877446121,-535.60931811,0.00021917,2]
[358260490,1744877446129,-500.0,0.00021917,2]
[358260491,1744877446138,-500.0,0.00021917,2]
[358260492,1744877446147,-500.0,0.00021917,2]
[358260493,1744877446154,-2111.62,0.00021917,2]
[358260494,1744877446163,-500.0,0.00021917,2]
[358260495,1744877446171,-2394.28,0.00021917,2]
[358260496,1744877446179,-500.0,0.00021917,2]
[358260497,1744877446187,-500.0,0.00021917,2]
[358260498,1744877446194,-363.18427872,0.00021917,2]
[358260499,1744877446203,-500.0,0.00021917,2]
[358260500,1744877446213,-901.0,0.00021917,2]
[358260501,1744877446222,-911.77,0.00021917,2]
[358260502,1744877446232,-500.0,0.00021917,2]
[358260503,1744877446242,-813.93,0.00021917,2]
[358260504,1744877446252,-500.0,0.00021917,2]
[358260506,1744877446262,-500.0,0.00021917,2]
[358260507,1744877446273,-500.0,0.00021917,2]
[358260508,1744877446283,-500.74810494,0.00021917,2]
[358260509,1744877446293,-500.0,0.00021917,2]
[358260510,1744877446303,-2020.32,0.00021917,2]
[358260511,1744877446313,-500.0,0.00021917,2]
[358260512,1744877446323,-500.0,0.00021917,2]
[358260513,1744877446332,-500.0,0.00021917,2]
[358260514,1744877446342,-500.0,0.00021917,2]
[358260515,1744877446352,-500.0,0.00021917,2]
[358260516,1744877446362,-500.0,0.00021917,2]
[358260517,1744877446372,-500.0,0.00021917,2]
[358260518,1744877446382,-500.0,0.00021917,2]
[358260519,1744877446392,-500.0,0.00021917,2]
[358260520,1744877446402,-500.0,0.00021917,2]
[358260521,1744877446412,-500.0,0.00021917,2]
[358260522,1744877446422,-792.96,0.00021917,2]
[358260523,1744877446432,-925.54,0.00021917,2]
[358260524,1744877446442,-500.0,0.00021917,2]
[358260525,1744877446452,-500.0,0.00021917,2]
[358260526,1744877446462,-500.73211232,0.00021917,2]
[358260527,1744877446473,-500.0,0.00021917,2]
[358260528,1744877446483,-500.0,0.00021917,2]
[358260529,1744877446492,-823.4,0.00021917,2]
[358260530,1744877446502,-500.0,0.00021917,2]
[358260532,1744877446512,-500.0,0.00021917,2]
[358260534,1744877446523,-500.0,0.00021917,2]
[358260536,1744877446539,-500.0,0.00021917,2]
[358260538,1744877446550,-500.0,0.00021917,2]
[358260540,1744877446560,-500.0,0.00021917,2]
[358260542,1744877446570,-500.0,0.00021917,2]
[358260543,1744877446580,-500.0,0.00021917,2]
[358260544,1744877446590,-500.0,0.00021917,2]
[358260545,1744877446600,-500.0,0.00021917,2]
[358260546,1744877446611,-500.0,0.00021917,2]
[358260547,1744877446622,-1041.93,0.00021917,2]
[358260548,1744877446632,-500.0,0.00021917,2]
[358260549,1744877446642,-500.0,0.00021917,2]
[358260550,1744877446698,-500.0,0.00021917,2]
[358260551,1744877446708,-337.96519737,0.00021917,2]
[358260552,1744877446718,-896.96,0.00021917,2]
[358260553,1744877446728,-1093.48,0.00021917,2]
[358260554,1744877446740,-500.0,0.00021917,2]
[358260555,1744877446750,-651.71,0.00021917,2]
[358260556,1744877446759,-500.0,0.00021917,2]
[358260557,1744877446769,-500.0,0.00021917,2]
[358260558,1744877446778,-961.61,0.00021917,2]
[358260559,1744877446788,-623.96,0.00021917,2]
[358260560,1744877446798,-8617.81,0.00021917,2]
[358260561,1744877446808,-500.0,0.00021917,2]
[358260562,1744877446818,-500.0,0.00021917,2]
[358260563,1744877446828,-750.25,0.00021917,2]
[358260564,1744877446838,-500.0,0.00021917,2]
[358260565,1744877446848,-1884.71,0.00021917,2]
[358260566,1744877446858,-500.0,0.00021917,2]
[358260567,1744877446867,-863.77,0.00021917,2]
[358260568,1744877446877,-500.0,0.00021917,2]
[358260569,1744877446887,-506.75132166,0.00021917,2]
[358260570,1744877446896,-500.0,0.00021917,2]
[358260571,1744877446906,-500.0,0.00021917,2]
[358260572,1744877446916,-500.0,0.00021917,2]
[358260573,1744877446926,-500.0,0.00021917,2]
[358260574,1744877446936,-504.24,0.00021917,2]
[358260575,1744877446946,-818.01,0.00021917,2]
[358260576,1744877446955,-500.0,0.00021917,2]
[358260577,1744877446966,-500.0,0.00021917,2]
[358260578,1744877446976,-637.87,0.00021917,2]
[358260579,1744877446985,-500.0,0.00021917,2]
[358260580,1744877446995,-500.0,0.00021917,2]
[358260581,1744877447004,-500.0,0.00021917,2]
[358260582,1744877447014,-500.0,0.00021917,2]
[358260583,1744877447025,-500.0,0.00021917,2]
[358260584,1744877447034,-514.91,0.00021917,2]
[358260585,1744877447044,-500.0,0.00021917,2]
[358260586,1744877447054,-500.0,0.00021917,2]
[358260587,1744877447064,-500.0,0.00021917,2]
[358260588,1744877447074,-1311.62,0.00021917,2]
[358260589,1744877447083,-500.0,0.00021917,2]
[358260590,1744877447093,-764.01,0.00021917,2]
[358260591,1744877447103,-500.0,0.00021917,2]
[358260592,1744877447112,-730.16,0.00021917,2]
[358260593,1744877447122,-7650.49,0.00021917,2]
[358260594,1744877447132,-500.0,0.00021917,2]
[358260595,1744877447141,-500.0,0.00021917,2]
[358260596,1744877447151,-508.06194087,0.00021917,2]
[358260597,1744877447161,-500.0,0.00021917,2]
[358260598,1744877447170,-711.07,0.00021917,2]
[358260599,1744877447180,-500.0,0.00021917,2]
[358260600,1744877447190,-4639.05,0.00021917,2]
[358260601,1744877447200,-500.0,0.00021917,2]
[358260602,1744877447210,-500.0,0.00021917,2]
[358260603,1744877447220,-500.0,0.00021917,2]
[358260604,1744877447230,-788.57,0.00021917,2]
[358260605,1744877447240,-1657.12,0.00021917,2]
[358260606,1744877447250,-500.0,0.00021917,2]
[358260607,1744877447260,-500.0,0.00021917,2]
[358260608,1744877447270,-500.0,0.00021917,2]
[358260609,1744877447279,-279.47643507,0.00021917,2]
[358260610,1744877447289,-520.11,0.00021917,2]
[358260611,1744877447298,-500.0,0.00021917,2]
[358260612,1744877447308,-500.0,0.00021917,2]
[358260613,1744877447318,-500.0,0.00021917,2]
[358260614,1744877447327,-501.91052893,0.00021917,2]
[358260615,1744877447336,-555.38343233,0.00021917,2]
[358260616,1744877447347,-500.0,0.00021917,2]
[358260617,1744877447356,-736.45,0.00021917,2]
[358260618,1744877447366,-500.0,0.00021917,2]
[358260619,1744877447376,-202.64207921,0.00021917,2]
[358260620,1744877447386,-1222.88,0.00021917,2]
[358260621,1744877447396,-500.0,0.00021917,2]
[358260622,1744877447406,-1171.43,0.00021917,2]
[358260623,1744877447416,-1016.25,0.00021917,2]
[358260624,1744877447425,-360.69007975,0.00021917,2]
[358260625,1744877447436,-859.36,0.00021917,2]
[358260626,1744877447446,-500.0,0.00021917,2]
[358260627,1744877447456,-500.0,0.00021917,2]
[358260628,1744877447466,-864.34,0.00021917,2]
[358260629,1744877447476,-1716.05,0.00021917,2]
[358260630,1744877447486,-540.93,0.00021917,2]
[358260631,1744877447496,-500.0,0.00021917,2]
[358260632,1744877447505,-2138.070926,0.00021917,2]
[358260633,1744877447515,-2138.070926,0.00021917,2]
[358260634,1744877447525,-355.56301823,0.00021917,2]
[358260635,1744877447538,-2138.070926,0.00021917,2]
[358260636,1744877447549,-2138.070926,0.00021917,2]
[358260637,1744877447559,-2138.070926,0.00021917,2]
[358260638,1744877447571,-2138.070926,0.00021917,2]
[358260639,1744877447580,-2138.070926,0.00021917,2]
[358260640,1744877447590,-500.0,0.00021917,2]
[358260641,1744877447601,-2138.070926,0.00021917,2]
[358260642,1744877447612,-886.27,0.00021917,2]
[358260643,1744877447623,-1196.11,0.00021917,2]
[358260644,1744877447633,-2138.070926,0.00021917,2]
[358260645,1744877447643,-2138.070926,0.00021917,2]
[358260646,1744877447654,-2138.070926,0.00021917,2]
[358260647,1744877447663,-2138.070926,0.00021917,2]
[358260648,1744877447674,-2138.070926,0.00021917,2]
[358260649,1744877447684,-2138.070926,0.00021917,2]
[358260650,1744877447695,-2138.070926,0.00021917,2]
[358260651,1744877447705,-2138.070926,0.00021917,2]
[358260653,1744877447715,-2138.070926,0.00021917,2]
[358260655,1744877447725,-2138.07092619,0.00021917,2]
[358260657,1744877447737,-710.68,0.00021917,2]
[358260660,1744877447748,-500.0,0.00021917,2]
[358260661,1744877447758,-500.0,0.00021917,2]
[358260663,1744877447768,-751.8,0.00021917,2]
[358260665,1744877447777,-1321.82,0.00021917,2]
[358260667,1744877447787,-500.0,0.00021917,2]
[358260669,1744877447797,-908.14,0.00021917,2]
[358260671,1744877447807,-992.98,0.00021917,2]
[358260673,1744877447817,-814.08,0.00021917,2]
[358260675,1744877447827,-1234.25,0.00021917,2]
[358260677,1744877447837,-962.85,0.00021917,2]
[358260678,1744877447847,-500.0,0.00021917,2]
[358260680,1744877447856,-507.70756241,0.00021917,2]
[358260682,1744877447866,-500.0,0.00021917,2]
[358260684,1744877447875,-1255.27,0.00021917,2]
[358260686,1744877447885,-500.0,0.00021917,2]
[358260688,1744877447895,-502.65879039,0.00021917,2]
[358260690,1744877447904,-774.3,0.00021917,2]
[358260692,1744877447913,-500.0,0.00021917,2]
[358260694,1744877447923,-1252.22,0.00021917,2]
[358260696,1744877447932,-500.0,0.00021917,2]
[358260698,1744877447942,-7614.52,0.00021917,2]
[358260700,1744877447952,-500.0,0.00021917,2]
[358260702,1744877447961,-500.0,0.00021917,2]
[358260704,1744877447971,-969.55,0.00021917,2]
[358260706,1744877447981,-586.82,0.00021917,2]
[358260708,1744877447991,-300.0,0.00021917,2]
[358260710,1744877448001,-710.99,0.00021917,2]
[358260712,1744877448021,-500.0,0.00021917,2]
[358260714,1744877448042,-756.31,0.00021917,2]
[358260716,1744877448061,-500.0,0.00021917,2]
[358260718,1744877448082,-500.0,0.00021917,2]
[358260719,1744877448102,-506.61086829,0.00021917,2]
[358260721,1744877448125,-1435.55,0.00021917,2]
[358260722,1744877448149,-509.96645811,0.00021917,2]
[358260723,1744877448171,-1435.45,0.00021917,2]
[358260724,1744877448194,-500.0,0.00021917,2]
[358260725,1744877448215,-570.52,0.00021917,2]
[358260726,1744877448235,-500.0,0.00021917,2]
[358260727,1744877448256,-1234.21,0.00021917,2]
[358260728,1744877448271,-578.56,0.00021917,2]
[358260729,1744877448282,-500.0,0.00021917,2]
[358260730,1744877448292,-500.0,0.00021917,2]
[358260731,1744877448303,-578.64,0.00021917,2]
[358260732,1744877448314,-500.0,0.00021917,2]
[358260733,1744877448324,-500.0,0.00021917,2]
[358260734,1744877448334,-616.26,0.00021917,2]
[358260735,1744877448345,-500.0,0.00021917,2]
[358260736,1744877448357,-500.0,0.00021917,2]
[358260737,1744877448368,-500.0,0.00021917,2]
[358260738,1744877448379,-1230.32,0.00021917,2]
[358260739,1744877448391,-292.67296697,0.00021917,2]
[358260740,1744877448402,-2120.81,0.00021917,2]
[358260741,1744877448414,-1974.6,0.00021917,2]
[358260742,1744877448425,-504.8298821,0.00021917,2]
[358260743,1744877448436,-500.0,0.00021917,2]
[358260744,1744877448446,-500.0,0.00021917,2]
[358260745,1744877448456,-500.0,0.00021917,2]
[358260746,1744877448467,-500.0,0.00021917,2]
[358260747,1744877448477,-500.0,0.00021917,2]
[358260748,1744877448486,-500.0,0.00021917,2]
[358260749,1744877448497,-569.09,0.00021917,2]
[358260750,1744877448507,-1002.48,0.00021917,2]
[358260751,1744877448517,-5642.02,0.00021917,2]
[358260752,1744877448531,-500.0,0.00021917,2]
[358260753,1744877448542,-500.0,0.00021917,2]
[358260754,1744877448552,-978.25,0.00021917,2]
[358260755,1744877448563,-512.12,0.00021917,2]
[358260756,1744877448575,-500.0,0.00021917,2]
[358260757,1744877448585,-500.0,0.00021917,2]
[358260758,1744877448595,-3762.5,0.00021917,2]
[358260759,1744877448606,-500.0,0.00021917,2]
[358260760,1744877448616,-500.0,0.00021917,2]
[358260761,1744877448626,-659.89,0.00021917,2]
[358260762,1744877448637,-634.67,0.00021917,2]
[358260763,1744877448647,-1947.47,0.00021917,2]
[358260764,1744877448657,-1201.18,0.00021917,2]
[358260765,1744877448667,-620.29696769,0.00021917,2]
[358260766,1744877448677,-500.0,0.00021917,2]
[358260767,1744877448687,-500.0,0.00021917,2]
[358260768,1744877448697,-500.0,0.00021917,2]
[358260769,1744877448708,-500.0,0.00021917,2]
[358260770,1744877448722,-543.07,0.00021917,2]
[358260771,1744877448732,-500.0,0.00021917,2]
[358260772,1744877448743,-523.72078651,0.00021917,2]
[358260773,1744877448753,-500.0,0.00021917,2]
[358260774,1744877448764,-428.16065747,0.00021917,2]
[358260775,1744877448774,-380.7452548,0.00021917,2]
[358260776,1744877448784,-1736.07,0.00021917,2]
[358260777,1744877448795,-515.59724937,0.00021917,2]
[358260778,1744877448806,-500.0,0.00021917,2]
[358260779,1744877448816,-500.0,0.00021917,2]
[358260780,1744877448827,-500.0,0.00021917,2]
[358260781,1744877448837,-500.0,0.00021917,2]
[358260782,1744877448848,-500.0,0.00021917,2]
[358260783,1744877448858,-500.0,0.00021917,2]
[358260784,1744877448868,-500.0,0.00021917,2]
[358260785,1744877448879,-500.0,0.00021917,2]
[358260786,1744877448889,-500.0,0.00021917,2]
[358260787,1744877448899,-500.0,0.00021917,2]
[358260788,1744877448909,-500.0,0.00021917,2]
[358260789,1744877448919,-500.0,0.00021917,2]
[358260790,1744877448931,-500.0,0.00021917,2]
[358260791,1744877448942,-500.0,0.00021917,2]
[358260792,1744877448952,-503.98277659,0.00021917,2]
[358260793,1744877448962,-500.0,0.00021917,2]
[358260794,1744877448973,-500.0,0.00021917,2]
[358260795,1744877448983,-500.0,0.00021917,2]
[358260796,1744877448993,-446.07280912,0.00021917,2]
[358260797,1744877449004,-714.13,0.00021917,2]
[358260798,1744877449014,-2060.21779552,0.00021917,2]
[358260799,1744877449024,-500.0,0.00021917,2]
[358260800,1744877449034,-851.28,0.00021917,2]
[358260801,1744877449044,-500.0,0.00021917,2]
[358260802,1744877449054,-500.0,0.00021917,2]
[358260803,1744877449065,-756.52,0.00021917,2]
[358260804,1744877449076,-2322.91,0.00021917,2]
[358260805,1744877449087,-500.0,0.00021917,2]
[358260806,1744877449098,-500.0,0.00021917,2]
[358260807,1744877449108,-500.0,0.00021917,2]
[358260808,1744877449119,-500.0,0.00021917,2]
[358260809,1744877449130,-500.0,0.00021917,2]
[358260810,1744877449140,-500.0,0.00021917,2]
[358260811,1744877449150,-2073.19,0.00021917,2]
[358260812,1744877449160,-500.0,0.00021917,2]
[358260813,1744877449170,-843.25,0.00021917,2]
[358260814,1744877449180,-618.16,0.00021917,2]
[358260815,1744877449192,-2002.15,0.00021917,2]
[358260816,1744877449202,-505.84,0.00021917,2]
[358260817,1744877449212,-500.0,0.00021917,2]
[358260818,1744877449223,-500.0,0.00021917,2]
[358260819,1744877449233,-1213.13,0.00021917,2]
[358260820,1744877449244,-500.0,0.00021917,2]
[358260821,1744877449255,-500.0,0.00021917,2]
[358260822,1744877449265,-500.0,0.00021917,2]
[358260823,1744877449275,-642.73,0.00021917,2]
[358260824,1744877449285,-500.0,0.00021917,2]
[358260825,1744877449296,-500.0,0.00021917,2]
[358260826,1744877449306,-575.19,0.00021917,2]
[358260827,1744877449316,-1627.33,0.00021917,2]
[358260828,1744877449326,-500.0,0.00021917,2]
[358260829,1744877449337,-500.0,0.00021917,2]
[358260830,1744877449347,-500.0,0.00021917,2]
[358260831,1744877449358,-539.31,0.00021917,2]
[358260832,1744877449369,-500.0,0.00021917,2]
[358260833,1744877449381,-500.0,0.00021917,2]
[358260834,1744877449391,-631.27,0.00021917,2]
[358260835,1744877449402,-500.0,0.00021917,2]
[358260836,1744877449412,-1865.0,0.00021917,2]
[358260837,1744877449422,-7320.6,0.00021917,2]
[358260838,1744877449433,-500.0,0.00021917,2]
[358260839,1744877449443,-692.09,0.00021917,2]
[358260840,1744877449453,-500.0,0.00021917,2]
[358260841,1744877449463,-500.0,0.00021917,2]
[358260842,1744877449474,-502.80919337,0.00021917,2]
[358260843,1744877449485,-505.62343837,0.00021917,2]
[358260844,1744877449496,-500.0,0.00021917,2]
[358260845,1744877449508,-1030.23,0.00021917,2]
[358260846,1744877449519,-500.0,0.00021917,2]
[358260847,1744877449534,-500.0,0.00021917,2]
[358260848,1744877449545,-500.0,0.00021917,2]
[358260849,1744877449557,-500.0,0.00021917,2]
[358260850,1744877449568,-500.0,0.00021917,2]
[358260851,1744877449579,-500.0,0.00021917,2]
[358260852,1744877449589,-500.0,0.00021917,2]
[358260853,1744877449600,-534.50173421,0.00021917,2]
[358260854,1744877449612,-652.65,0.00021917,2]
[358260855,1744877449624,-500.0,0.00021917,2]
[358260856,1744877449635,-581.2,0.00021917,2]
[358260857,1744877449645,-581.2,0.00021917,2]
[358260858,1744877449657,-500.0,0.00021917,2]
[358260859,1744877449667,-581.2,0.00021917,2]
[358260860,1744877449677,-581.2,0.00021917,2]
[358260861,1744877449688,-581.2,0.00021917,2]
[358260862,1744877449699,-323.40200273,0.00021917,2]
[358260863,1744877449711,-581.2,0.00021917,2]
[358260864,1744877449722,-581.2,0.00021917,2]
[358260865,1744877449733,-500.0,0.00021917,2]
[358260866,1744877449744,-581.2,0.00021917,2]
[358260867,1744877449755,-839.98,0.00021917,2]
[358260868,1744877449767,-500.0,0.00021917,2]
[358260869,1744877449782,-581.2,0.00021917,2]
[358260870,1744877449800,-510.9201397,0.00021917,2]
[358260871,1744877449817,-581.2,0.00021917,2]
[358260872,1744877449838,-581.2,0.00021917,2]
[358260873,1744877449860,-581.2,0.00021917,2]
[358260874,1744877449879,-581.2,0.00021917,2]
[358260875,1744877449899,-581.2,0.00021917,2]
[358260876,1744877449920,-581.2,0.00021917,2]
[358260877,1744877449942,-588.14,0.00021917,2]
[358260878,1744877449963,-581.2,0.00021917,2]
[358260879,1744877449981,-581.2,0.00021917,2]
[358260880,1744877449992,-500.0,0.00021917,2]
[358260881,1744877450002,-581.2,0.00021917,2]
[358260882,1744877450013,-581.2,0.00021917,2]
[358260883,1744877450024,-581.2,0.00021917,2]
[358260884,1744877450035,-500.0,0.00021917,2]
[358260885,1744877450045,-500.0,0.00021917,2]
[358260886,1744877450055,-581.2,0.00021917,2]
[358260887,1744877450065,-581.2,0.00021917,2]
[358260888,1744877450075,-581.2,0.00021917,2]
[358260889,1744877450085,-581.37559101,0.00021917,2]
[358260890,1744877450097,-500.0,0.00021917,2]
[358260891,1744877450109,-500.0,0.00021917,2]
[358260892,1744877450119,-500.0,0.00021917,2]
[358260893,1744877450130,-1410.49,0.00021917,2]
[358260894,1744877450140,-500.0,0.00021917,2]
[358260895,1744877450151,-500.0,0.00021917,2]
[358260896,1744877450162,-500.0,0.00021917,2]
[358260897,1744877450172,-802.63,0.00021917,2]
[358260898,1744877450183,-500.0,0.00021917,2]
[358260899,1744877450194,-501.34195719,0.00021917,2]
[358260900,1744877450206,-1454.02,0.00021917,2]
[358260901,1744877450217,-500.0,0.00021917,2]